fUSD/lending_fUSD_20250325
["ID","MTS","AMOUNT","RATE_DAILY","PERIOD"]
[356677647,1742941144130,-241.89445285,0.0005,120]
[356677648,1742941144173,-151.0,0.0005,120]
[356677649,1742941144220,-151.0,0.0005,120]
[356677650,1742941144266,-151.0,0.0005,120]
[356677651,1742941144311,-159.754864,0.0005,120]
[356677652,1742941144355,-837.0,0.00050007,30]
[356677653,1742941144393,-812.54,0.00050036,120]
[356677654,1742941144430,-500.0,0.00050036,120]
[356677655,1742941144472,-500.0,0.00050036,120]
[356677656,1742941144518,-500.0,0.00050036,120]
[356677657,1742941144560,-500.0,0.00050036,120]
[356677658,1742941144603,-627.23,0.00050036,120]
[356677659,1742941144645,-500.0,0.00050036,120]
[356677660,1742941144682,-500.0,0.00050036,120]
[356677661,1742941144719,-1688.15,0.00050036,120]
[356677662,1742941144759,-500.0,0.00050036,120]
[356677663,1742941144799,-500.0,0.00050036,120]
[356677664,1742941144835,-355.40286,0.000501,120]
[356677665,1742941144874,-260.80572,0.000501,120]
[356677666,1742941144911,-539.52,0.00050136,120]
[356677667,1742941144950,-500.0,0.00050136,120]
[356677668,1742941144987,-1894.58,0.00050136,120]
[356677669,1742941145026,-500.0,0.00050136,120]
[356677670,1742941145069,-500.0,0.00050136,120]
[356677671,1742941145109,-500.0,0.00050136,120]
[356677672,1742941145152,-946.67,0.00050136,120]
[356677673,1742941145192,-766.19,0.00050136,100]
[356677674,1742941145230,-302.60194614,0.00050136,120]
[356677675,1742941145269,-1071.79,0.00050136,120]
[356677676,1742941145309,-1018.86,0.00050136,120]
[356677677,1742941145349,-4775.75,0.00050136,120]
[356677678,1742941145385,-840.81,0.00050136,120]
[356677679,1742941145421,-688.21,0.00050136,120]
[356677680,1742941145456,-554.09,0.00050136,30]
[356677681,1742941145493,-1472.34,0.00050136,120]
[356677682,1742941145527,-600.66,0.00050136,120]
[356677683,1742941145562,-2173.64,0.00050136,120]
[356677684,1742941145597,-500.0,0.00050136,120]
[356677685,1742941145632,-211.87522147,0.00050195,120]
[356677686,1742941145670,-1000.0,0.00050233,120]
[356677687,1742941145705,-812.54,0.0005031,120]
[356677688,1742941145743,-500.0,0.0005031,120]
[356677689,1742941145780,-500.0,0.0005031,120]
[356677690,1742941145815,-500.0,0.0005031,120]
[356677691,1742941145852,-500.0,0.0005031,120]
[356677692,1742941145888,-627.23,0.0005031,120]
[356677693,1742941145926,-500.0,0.0005031,120]
[356677694,1742941145963,-500.0,0.0005031,120]
[356677695,1742941145999,-1688.15,0.0005031,120]
[356677696,1742941146040,-500.0,0.0005031,120]
[356677697,1742941146082,-500.0,0.0005031,120]
[356677698,1742941146124,-1064.0,0.00050392,30]
[356677699,1742941146164,-539.52,0.0005041,120]
[356677700,1742941146203,-500.0,0.0005041,120]
[356677701,1742941146241,-1894.58,0.0005041,120]
[356677702,1742941146277,-500.0,0.0005041,120]
[356677703,1742941146316,-500.0,0.0005041,120]
[356677704,1742941146352,-500.0,0.0005041,120]
[356677705,1742941146389,-946.67,0.0005041,120]
[356677706,1742941146424,-766.19,0.0005041,100]
[356677707,1742941146459,-1071.79,0.0005041,120]
[356677708,1742941146639,-1018.86,0.0005041,120]
[356677709,1742941146676,-4775.75,0.0005041,120]
[356677710,1742941146712,-840.81,0.0005041,120]
[356677711,1742941146751,-688.21,0.0005041,120]
[356677712,1742941146788,-554.09,0.0005041,30]
[356677713,1742941146824,-1472.34,0.0005041,120]
[356677714,1742941146861,-600.66,0.0005041,120]
[356677715,1742941146897,-2173.64,0.0005041,120]
[356677716,1742941146933,-500.0,0.0005041,120]
[356677717,1742941146967,-3000.0,0.0005044,31]
[356677718,1742941147002,-760.59,0.00050578,120]
[356677719,1742941147037,-812.54,0.00050584,120]
[356677720,1742941147072,-500.0,0.00050584,120]
[356677721,1742941147109,-500.0,0.00050584,120]
[356677722,1742941147146,-500.0,0.00050584,120]
[356677723,1742941147190,-500.0,0.00050584,120]
[356677724,1742941147235,-627.23,0.00050584,120]
[356677725,1742941147283,-500.0,0.00050584,120]
[356677726,1742941147330,-184.54215352,0.00050584,120]
[356677727,1742941147378,-1688.15,0.00050584,120]
[356677728,1742941147424,-500.0,0.00050584,120]
[356677729,1742941147467,-500.0,0.00050584,120]
[356677730,1742941147506,-539.52,0.00050684,120]
[356677731,1742941147542,-500.0,0.00050684,120]
[356677732,1742941147578,-1894.58,0.00050684,120]
[356677733,1742941147614,-209.53491377,0.00050684,120]
[356677734,1742941147646,-500.0,0.00050684,120]
[356677735,1742941147679,-500.0,0.00050684,120]
[356677736,1742941147714,-946.67,0.00050684,120]
[356677737,1742941147752,-766.19,0.00050684,100]
[356677738,1742941147789,-1071.79,0.00050684,120]
[356677739,1742941147824,-1018.86,0.00050684,120]
[356677740,1742941147859,-4775.75,0.00050684,120]
[356677741,1742941147892,-840.81,0.00050684,120]
[356677742,1742941147926,-688.21,0.00050684,120]
[356677743,1742941147960,-554.09,0.00050684,30]
[356677744,1742941147994,-1472.34,0.00050684,120]
[356677745,1742941148029,-600.66,0.00050684,120]
[356677746,1742941148066,-2173.64,0.00050684,120]
[356677747,1742941148102,-500.0,0.00050684,120]
[356677748,1742941148137,-2716.0,0.000508,120]
[356677749,1742941148174,-812.54,0.00050858,120]
[356677750,1742941148212,-500.0,0.00050858,120]
[356677751,1742941148250,-500.0,0.00050858,120]
[356677752,1742941148289,-172.15,0.00050858,120]
[356677753,1742941148324,-500.0,0.00050858,120]
[356677754,1742941148366,-627.23,0.00050858,120]
[356677755,1742941148402,-500.0,0.00050858,120]
[356677756,1742941148439,-1688.15,0.00050858,120]
[356677757,1742941148475,-500.0,0.00050858,120]
[356677758,1742941148514,-500.0,0.00050858,120]
[356677759,1742941148550,-3000.0,0.0005089,31]
[356677760,1742941148585,-539.52,0.00050958,120]
[356677761,1742941148619,-500.0,0.00050958,120]
[356677762,1742941148654,-1894.58,0.00050958,120]
[356677763,1742941148690,-500.0,0.00050958,120]
[356677764,1742941148726,-500.0,0.00050958,120]
[356677765,1742941148766,-946.67,0.00050958,120]
[356677766,1742941148802,-766.19,0.00050958,100]
[356677767,1742941148843,-1071.79,0.00050958,120]
[356677768,1742941148882,-1018.86,0.00050958,120]
[356677769,1742941148920,-4775.75,0.00050958,120]
[356677770,1742941148955,-840.81,0.00050958,120]
[356677771,1742941148991,-688.21,0.00050958,120]
[356677772,1742941149027,-554.09,0.00050958,30]
[356677773,1742941149064,-1472.34,0.00050958,120]
[356677774,1742941149104,-600.66,0.00050958,120]
[356677775,1742941149143,-2173.64,0.00050958,120]
[356677776,1742941149180,-500.0,0.00050958,120]
[356677777,1742941149219,-50000.0,0.00051,51]
[356677778,1742941149255,-1000000.0,0.00051,120]
[356677779,1742941149292,-1000000.0,0.00051,120]
[356677780,1742941149328,-500.0,0.00051,120]
[356677781,1742941149363,-20625.98194758,0.00051,120]
[356677782,1742941149397,-21000.0,0.00051,120]
[356677783,1742941149435,-151.0,0.00051,120]
[356677784,1742941149469,-2000.0,0.00051,120]
[356677785,1742941149505,-2000.0,0.00051,120]
[356677786,1742941149540,-2000.0,0.00051,120]
[356677787,1742941149574,-2000.0,0.00051,120]
[356677788,1742941149608,-2044.8428,0.00051,120]
[356677789,1742941149654,-2000.0,0.00051,120]
[356677790,1742941149694,-2000.0,0.00051,120]
[356677791,1742941149728,-2000.0,0.00051,120]
[356677792,1742941149768,-2000.0,0.00051,120]
[356677793,1742941149803,-2000.0,0.00051,120]
[356677794,1742941149838,-812.54,0.00051132,120]
[356677795,1742941149873,-500.0,0.00051132,120]
[356677796,1742941149909,-500.0,0.00051132,120]
[356677797,1742941149946,-500.0,0.00051132,120]
[356677798,1742941149983,-627.23,0.00051132,120]
[356677799,1742941150020,-500.0,0.00051132,120]
[356677800,1742941150060,-1688.15,0.00051132,120]
[356677801,1742941150098,-538.01937344,0.00051132,120]
[356677802,1742941150136,-500.0,0.00051132,120]
[356677803,1742941150348,-539.52,0.00051232,120]
[356677804,1742941150385,-500.0,0.00051232,120]
[356677805,1742941150418,-1894.58,0.00051232,120]
[356677806,1742941150452,-500.0,0.00051232,120]
[356677807,1742941150488,-265.85944493,0.00051232,120]
[356677808,1742941150522,-946.67,0.00051232,120]
[356677809,1742941150560,-766.19,0.00051232,100]
[356677810,1742941150594,-1071.79,0.00051232,120]
[356677811,1742941150628,-1018.86,0.00051232,120]
[356677812,1742941150662,-4775.75,0.00051232,120]
[356677813,1742941150695,-840.81,0.00051232,120]
[356677814,1742941150730,-688.21,0.00051232,120]
[356677815,1742941150767,-554.09,0.00051232,30]
[356677816,1742941150801,-1472.34,0.00051232,120]
[356677817,1742941150837,-600.66,0.00051232,120]
[356677818,1742941150872,-2173.64,0.00051232,120]
[356677819,1742941150906,-230.18421534,0.00051232,120]
[356677820,1742941150940,-150.0,0.00051282,120]
[356677821,1742941150973,-355.40286,0.000513,120]
[356677822,1742941151006,-812.54,0.00051406,120]
[356677823,1742941151041,-500.0,0.00051406,120]
[356677824,1742941151076,-500.0,0.00051406,120]
[356677825,1742941151109,-500.0,0.00051406,120]
[356677826,1742941151146,-627.23,0.00051406,120]
[356677827,1742941151180,-239.2768873,0.00051406,120]
[356677828,1742941151217,-1688.15,0.00051406,120]
[356677829,1742941151254,-500.0,0.00051406,120]
[356677830,1742941151291,-3000.0,0.0005144,31]
[356677831,1742941151327,-80000.0,0.0005145,30]
[356677832,1742941151362,-539.52,0.00051506,120]
[356677833,1742941151396,-175.9931985,0.00051506,120]
[356677834,1742941151430,-1894.58,0.00051506,120]
[356677835,1742941151464,-500.0,0.00051506,120]
[356677836,1742941151499,-946.67,0.00051506,120]
[356677837,1742941151536,-766.19,0.00051506,100]
[356677838,1742941151571,-1071.79,0.00051506,120]
[356677839,1742941151607,-1018.86,0.00051506,120]
[356677840,1742941151641,-4775.75,0.00051506,120]
[356677841,1742941151675,-840.81,0.00051506,120]
[356677842,1742941151710,-688.21,0.00051506,120]
[356677843,1742941151745,-554.09,0.00051506,30]
[356677844,1742941151783,-1472.34,0.00051506,120]
[356677845,1742941151819,-600.66,0.00051506,120]
[356677846,1742941151856,-2173.64,0.00051506,120]
[356677847,1742941151890,-812.54,0.0005168,120]
[356677848,1742941151925,-500.0,0.0005168,120]
[356677849,1742941151961,-500.0,0.0005168,120]
[356677850,1742941151996,-500.0,0.0005168,120]
[356677851,1742941152033,-627.23,0.0005168,120]
[356677852,1742941152070,-1688.15,0.0005168,120]
[356677853,1742941152106,-500.0,0.0005168,120]
[356677854,1742941152141,-1533158.4,0.0005169,120]
[356677855,1742941152177,-539.52,0.0005178,120]
[356677856,1742941152213,-1894.58,0.0005178,120]
[356677857,1742941152248,-500.0,0.0005178,120]
[356677858,1742941152284,-946.67,0.0005178,120]
[356677859,1742941152321,-766.19,0.0005178,100]
[356677860,1742941152356,-1071.79,0.0005178,120]
[356677861,1742941152392,-1018.86,0.0005178,120]
[356677862,1742941152427,-4775.75,0.0005178,120]
[356677863,1742941152463,-840.81,0.0005178,120]
[356677864,1742941152500,-688.21,0.0005178,120]
[356677865,1742941152535,-554.09,0.0005178,30]
[356677866,1742941152570,-1472.34,0.0005178,120]
[356677867,1742941152604,-600.66,0.0005178,120]
[356677868,1742941152641,-2173.64,0.0005178,120]
[356677869,1742941152674,-113071.14013732,0.000518,120]
[356677870,1742941152709,-1593.23373957,0.000518,120]
[356677871,1742941152746,-427.57298662,0.000519,120]
[356677872,1742941152781,-142933.80400653,0.000519,120]
[356677873,1742941152817,-812.54,0.00051954,120]
[356677874,1742941152853,-626.53927982,0.00051954,120]
[356677875,1742941152889,-361.21833862,0.00051954,120]
[356677876,1742941152925,-500.0,0.00051954,120]
[356677877,1742941152961,-627.23,0.00051954,120]
[356677878,1742941153000,-1688.15,0.00051954,120]
[356677879,1742941153037,-500.0,0.00051954,120]
[356677880,1742941153077,-294815.57124192,0.00051999,30]
[356677881,1742941157305,-500.0,0.00047022,120]
[356677882,1742941157343,-500.0,0.00047296,120]
[356677883,1742941157381,-500.0,0.0004757,120]
[356677884,1742941157421,-500.0,0.00047844,120]
[356677885,1742941157461,-500.0,0.00048118,120]
[356677886,1742941157497,-500.0,0.00048392,120]
[356677887,1742941157534,-500.0,0.00048666,120]
[356677888,1742941157570,-500.0,0.0004894,120]
[356677889,1742941157607,-287.2988786,0.00049214,120]
[356677890,1742941157645,-2395.36,0.00050036,120]
[356677891,1742941157681,-2395.36,0.0005031,120]
[356677892,1742941157716,-2395.36,0.00050584,120]
[356677893,1742941157751,-2395.36,0.00050858,120]
[356677894,1742941157788,-2395.36,0.00051132,120]
[356677895,1742941157824,-2395.36,0.00051406,120]
[356677896,1742941157860,-2395.36,0.0005168,120]
[356677897,1742941157897,-2395.36,0.00051954,120]
[356677898,1742941157936,-58907.12352334,0.00051999,30]
[356677899,1742941157975,-50000.0,0.00052,52]
[356677900,1742941158011,-1000.0,0.00052,120]
[356677901,1742941158048,-615000.0,0.00052,120]
[356677902,1742941158085,-1000000.0,0.00052,120]
[356677903,1742941158122,-20000.0,0.00052,120]
[356677904,1742941158162,-1000000.0,0.00052,120]
[356677905,1742941158200,-1000000.0,0.00052,120]
[356677906,1742941158238,-1000000.0,0.00052,120]
[356677907,1742941158276,-231642.69759806,0.00052,120]
[356677908,1742941161948,-1000.0,0.00051211,120]
[356677909,1742941161988,-768357.30240194,0.00052,120]
[356677910,1742941162028,-1000000.0,0.00052,120]
[356677911,1742941162068,-1000000.0,0.00052,120]
[356677912,1742941162107,-1000000.0,0.00052,120]
[356677913,1742941162145,-1000000.0,0.00052,120]
[356677914,1742941162183,-150.0,0.00052,30]
[356677915,1742941162223,-150.0,0.00052,120]
[356677916,1742941162267,-11534.14935711,0.00052,30]
[356677917,1742941162306,-581.4823675,0.00052,120]
[356677918,1742941162345,-880.23297401,0.00052,30]
[356677919,1742941162382,-164.58777287,0.00052,30]
[356677920,1742941162417,-300.0,0.00052,30]
[356677921,1742941162453,-539.52,0.00052054,120]
[356677922,1742941162489,-1894.58,0.00052054,120]
[356677923,1742941162526,-500.0,0.00052054,120]
[356677924,1742941162563,-946.67,0.00052054,120]
[356677925,1742941162601,-1018.86,0.00052054,120]
[356677926,1742941162639,-4775.75,0.00052054,120]
[356677927,1742941162675,-688.21,0.00052054,120]
[356677928,1742941162710,-554.09,0.00052054,30]
[356677929,1742941162749,-1472.34,0.00052054,120]
[356677930,1742941162784,-600.66,0.00052054,120]
[356677931,1742941162820,-2173.64,0.00052054,120]
[356677932,1742941162855,-812.54,0.00052228,120]
[356677933,1742941162893,-500.0,0.00052228,120]
[356677934,1742941162930,-627.23,0.00052228,120]
[356677935,1742941162967,-1688.15,0.00052228,120]
[356677936,1742941163002,-500.0,0.00052228,120]
[356677937,1742941163039,-2395.36,0.00052228,120]
[356677938,1742941163076,-151.12,0.00052266,120]
[356677939,1742941163113,-539.52,0.00052328,120]
[356677940,1742941163152,-1894.58,0.00052328,120]
[356677941,1742941163188,-500.0,0.00052328,120]
[356677942,1742941163225,-946.67,0.00052328,120]
[356677943,1742941163261,-1018.86,0.00052328,120]
[356677944,1742941163300,-4775.75,0.00052328,120]
[356677945,1742941163338,-688.21,0.00052328,120]
[356677946,1742941163378,-554.09,0.00052328,30]
[356677947,1742941163415,-1472.34,0.00052328,120]
[356677948,1742941163451,-600.66,0.00052328,120]
[356677949,1742941163489,-2173.64,0.00052328,120]
[356677950,1742941163524,-168.48888889,0.00052438,120]
[356677951,1742941163563,-355.40286,0.000525,120]
[356677952,1742941163603,-10002.4793681,0.000525,120]
[356677953,1742941163642,-812.54,0.00052502,120]
[356677954,1742941163678,-377.54260498,0.00052502,120]
[356677955,1742941163712,-627.23,0.00052502,120]
[356677956,1742941163748,-1688.15,0.00052502,120]
[356677957,1742941163785,-500.0,0.00052502,120]
[356677958,1742941163821,-2395.36,0.00052502,120]
[356677959,1742941163856,-539.52,0.00052602,120]
[356677960,1742941163892,-1894.58,0.00052602,120]
[356677961,1742941163928,-212.25685435,0.00052602,120]
[356677962,1742941163963,-946.67,0.00052602,120]
[356677963,1742941164000,-1018.86,0.00052602,120]
[356677964,1742941164038,-4775.75,0.00052602,120]
[356677965,1742941164077,-688.21,0.00052602,120]
[356677966,1742941164226,-554.09,0.00052602,30]
[356677967,1742941164268,-1472.34,0.00052602,120]
[356677968,1742941164306,-600.66,0.00052602,120]
[356677969,1742941164345,-2173.64,0.00052602,120]
[356677970,1742941164382,-150.0,0.00052652,120]
[356677971,1742941164421,-3000.0,0.0005266,31]
[356677972,1742941164456,-3000.0,0.0005266,30]
[356677973,1742941164492,-812.54,0.00052776,120]
[356677974,1742941164530,-627.23,0.00052776,120]
[356677975,1742941164570,-1688.15,0.00052776,120]
[356677976,1742941164607,-500.0,0.00052776,120]
[356677977,1742941164645,-2395.36,0.00052776,120]
[356677978,1742941164682,-3000.0,0.0005286,30]
[356677979,1742941164720,-539.73834602,0.00052876,120]
[356677980,1742941164759,-1894.75146782,0.00052876,120]
[356677981,1742941164801,-946.74764517,0.00052876,120]
[356677982,1742941164840,-1018.94,0.00052876,120]
[356677983,1742941164879,-4775.88059542,0.00052876,120]
[356677984,1742941164915,-688.26339861,0.00052876,120]
[356677985,1742941164954,-554.21856388,0.00052876,30]
[356677986,1742941164991,-1472.53169621,0.00052876,120]
[356677987,1742941165031,-600.88190708,0.00052876,120]
[356677988,1742941165071,-2173.74974881,0.00052876,120]
[356677989,1742941165108,-485.02146,0.00052884,83]
[356677990,1742941165148,-1064.0,0.00052911,30]
[356677991,1742941165192,-50000.0,0.00053,53]
[356677992,1742941165228,-510.80530729,0.00053,120]
[356677993,1742941165266,-66176.62441394,0.00053,120]
[356677994,1742941166924,-1000000.0,0.00052,120]
[356677995,1742941166968,-933823.37558606,0.00053,120]
[356677996,1742941167009,-5000.0,0.00053,120]
[356677997,1742941167052,-3915.10266668,0.00053,120]
[356677998,1742941167093,-186.4197552,0.00053,54]
[356677999,1742941167131,-812.54,0.0005305,120]
[356678000,1742941167167,-627.23,0.0005305,120]
[356678001,1742941167204,-1688.15,0.0005305,120]
[356678002,1742941167243,-309.36326587,0.0005305,120]
[356678003,1742941167279,-2395.36,0.0005305,120]
[356678004,1742941167316,-166.31,0.00053058,120]
[356678005,1742941167351,-812.65314937,0.00053324,120]
[356678006,1742941167387,-627.45536667,0.00053324,120]
[356678007,1742941167428,-1688.32275853,0.00053324,120]
[356678008,1742941167466,-2395.4872,0.00053324,120]
[356678009,1742941167501,-523177.0,0.0005344,30]
[356678010,1742941167536,-3000.0,0.0005344,31]
[356678011,1742941167571,-355.40286,0.000537,120]
[356678012,1742941167607,-1000000.0,0.0005388,30]
[356678013,1742941167643,-50000.0,0.00054,54]
[356678014,1742941167677,-510.80530729,0.00054,120]
[356678015,1742941167711,-1000000.0,0.00054,120]
[356678016,1742941167750,-468509.02208433,0.00054,120]
[356678017,1742941170106,-560.79407523,0.00054,61]
[356678018,1742941170147,-531490.97791567,0.00054,120]
[356678019,1742941170187,-1000000.0,0.00054,120]
[356678020,1742941170226,-1000000.0,0.00054,120]
[356678021,1742941170264,-1000000.0,0.00054,120]
[356678022,1742941170299,-18048.39502648,0.00054,120]
[356678023,1742941170334,-50000.0,0.00054,120]
[356678024,1742941170374,-450.0,0.00054,55]
[356678025,1742941170411,-200.0,0.00054,120]
[356678026,1742941170448,-9999.999999,0.00054,120]
[356678027,1742941170484,-150.0,0.00054021,120]
[356678028,1742941170520,-80000.0,0.0005437,30]
[356678029,1742941170556,-81429.79599542,0.000544,120]
[356678030,1742941170591,-1500.0,0.00054444,30]
[356678031,1742941170625,-1500.0,0.0005456,30]
[356678032,1742941170659,-1899.0,0.00054767,120]
[356678033,1742941170696,-1899.0,0.00054767,120]
[356678034,1742941170730,-1899.0,0.00054767,120]
[356678035,1742941170766,-1899.0,0.00054767,120]
[356678036,1742941170802,-1899.0,0.00054767,120]
[356678037,1742941170838,-1899.0,0.00054767,120]
[356678038,1742941170873,-1899.0,0.00054767,120]
[356678039,1742941171032,-1899.0,0.00054767,120]
[356678040,1742941171073,-1899.0,0.00054767,120]
[356678041,1742941171112,-1899.0,0.00054767,120]
[356678042,1742941171153,-1899.0,0.00054767,120]
[356678043,1742941171191,-1899.0,0.00054767,120]
[356678044,1742941171229,-1899.0,0.00054767,120]
[356678045,1742941171267,-1899.0,0.00054767,120]
[356678046,1742941171306,-1899.0,0.00054767,120]
[356678047,1742941171342,-1899.0,0.00054767,120]
[356678048,1742941171379,-1899.0,0.00054767,120]
[356678049,1742941171414,-650.63883142,0.00054767,120]
[356678050,1742941171449,-313.13932374,0.00054794,120]
[356678051,1742941171484,-331.66553432,0.00054794,120]
[356678052,1742941171521,-13073.51,0.00054795,30]
[356678053,1742941171557,-26789.44,0.0005487,120]
[356678054,1742941171591,-1500.90263401,0.000549,120]
[356678055,1742941171628,-355.40286,0.000549,120]
[356678056,1742941171665,-5966.25306848,0.0005498,120]
[356678057,1742941171702,-1000.0,0.00054999,120]
[356678058,1742941171744,-50000.0,0.00055,55]
[356678059,1742941171785,-510.80530729,0.00055,120]
[356678060,1742941171822,-1000000.0,0.00055,120]
[356678061,1742941171860,-3284.95590904,0.00055,30]
[356678062,1742941171897,-6920.52,0.00055,120]
[356678063,1742941171935,-81689.8035199,0.00055,120]
[356678065,1742941179521,-2000.0,0.00051,120]
[356678066,1742941179559,-2000.0,0.00051,120]
[356678067,1742941179596,-270.459679,0.00051,120]
[356678068,1742941179632,-270.459679,0.0005145,120]
[356678069,1742941179669,-270.459679,0.0005169,120]
[356678070,1742941179704,-270.459679,0.00052,120]
[356678071,1742941179741,-270.459679,0.00052,120]
[356678072,1742941179779,-270.459679,0.00052,120]
[356678073,1742941179815,-270.459679,0.00052,120]
[356678074,1742941179851,-270.459679,0.00052,120]
[356678075,1742941179887,-1000000.0,0.00053,120]
[356678076,1742941179926,-918310.1964801,0.00055,120]
[356678077,1742941179962,-1000000.0,0.00055,120]
[356678078,1742941179999,-1000000.0,0.00055,120]
[356678079,1742941180034,-1000000.0,0.00055,120]
[356678080,1742941180071,-75526.1260879,0.00055,120]
[356678082,1742941185700,-160.15149777,0.000477,34]
[356678083,1742941185745,-270.459679,0.00051,120]
[356678084,1742941185785,-244.169765,0.00051,120]
[356678085,1742941185822,-2000.0,0.00051,120]
[356678086,1742941185860,-270.459679,0.0005145,120]
[356678087,1742941185897,-270.459679,0.0005169,120]
[356678088,1742941185942,-270.459679,0.00052,120]
[356678089,1742941185981,-270.459679,0.00052,120]
[356678090,1742941186023,-270.459679,0.00052,120]
[356678091,1742941186065,-270.459679,0.00052,120]
[356678092,1742941186105,-270.459679,0.00052,120]
[356678093,1742941186144,-270.459679,0.00053,120]
[356678094,1742941186183,-270.459679,0.00053,120]
[356678095,1742941186221,-270.459679,0.0005344,120]
[356678096,1742941186259,-270.459683,0.0005344,120]
[356678097,1742941186300,-924473.8739121,0.00055,120]
[356678098,1742941186340,-1000000.0,0.00055,120]
[356678099,1742941186381,-1000000.0,0.00055,120]
[356678100,1742941186415,-1000000.0,0.00055,120]
[356678101,1742941186450,-1000000.0,0.00055,120]
[356678102,1742941186484,-450.0,0.00055,56]
[356678103,1742941186518,-11534.14935711,0.00055,30]
[356678104,1742941186552,-650.0,0.00055,120]
[356678105,1742941186587,-150.0,0.00055,55]
[356678106,1742941186732,-500.0,0.00055068,120]
[356678107,1742941186771,-500.0,0.00055342,120]
[356678108,1742941186807,-150.0,0.00055391,120]
[356678109,1742941186845,-2500.0,0.0005544,31]
[356678110,1742941186881,-500.0,0.00055616,120]
[356678111,1742941186916,-500.0,0.0005589,120]
[356678112,1742941186953,-50000.0,0.00056,56]
[356678113,1742941186988,-2442.13931602,0.00056,120]
[356678115,1742941194251,-160.15,0.000482,36]
[356678116,1742941194298,-2155.524,0.00051,120]
[356678117,1742941194338,-160.15,0.000547,49]
[356678118,1742941194379,-997557.86068398,0.00056,120]
[356678119,1742941194414,-500.143,0.00056,120]
[356678120,1742941194450,-4457.8151387,0.00056,120]
[356678121,1742941194486,-200.0,0.00056,120]
[356678122,1742941194521,-150.0,0.00056,56]
[356678123,1742941194558,-200.0,0.00056,100]
[356678124,1742941194593,-40000.0,0.00056,120]
[356678125,1742941194628,-450.0,0.00056,57]
[356678126,1742941194663,-355.40294,0.000561,120]
[356678127,1742941194699,-500.0,0.00056164,120]
[356678128,1742941194735,-3000.0,0.000563,30]
[356678129,1742941194769,-500.0,0.00056438,120]
[356678130,1742941194804,-1500.0,0.0005658,30]
[356678131,1742941194839,-500.0,0.00056712,120]
[356678132,1742941194875,-150.0,0.00056761,120]
[356678133,1742941194910,-2000.0,0.0005678,30]
[356678134,1742941194946,-1000.0,0.00056901,120]
[356678135,1742941194983,-500.0,0.00056913,60]
[356678136,1742941195027,-511.83289477,0.00056986,120]
[356678137,1742941195071,-50000.0,0.00057,57]
[356678138,1742941195112,-579.30454944,0.00057,120]
[356678139,1742941195151,-1025.0,0.00057,120]
[356678140,1742941195190,-510.80530729,0.00057,120]
[356678141,1742941195229,-500.143,0.00057,120]
[356678142,1742941195268,-450.0,0.00057,59]
[356678143,1742941195305,-1000000.0,0.00057,120]
[356678144,1742941195345,-1000000.0,0.00057,120]
[356678145,1742941195383,-19965.85310469,0.00057,120]
[356678146,1742941195420,-2446.7,0.0005742,120]
[356678147,1742941195457,-500.0,0.000575,120]
[356678148,1742941195493,-1867513.31538113,0.00057534,120]
[356678149,1742941200359,-150.0,0.00056913,60]